bitfinex/quotes_BTCUSD_20250527
["timestamp","ask_amount","ask_price","bid_price","bid_amount"]
[1748357351067,0.0353985,109490.0,109480.0,6.39360228]
[1748357351312,0.01713258,109490.0,109480.0,6.39360228]
[1748357351569,0.01713258,109490.0,109480.0,6.39260228]
[1748357351570,0.02226533,109490.0,109480.0,6.39260228]
[1748357351826,0.21917714,109500.0,109490.0,4.65933184]
[1748357352116,0.21053977,109500.0,109490.0,4.16019128]
[1748357352673,0.21053977,109500.0,109490.0,4.1030976]
[1748357352772,0.21053977,109500.0,109490.0,4.5030976]
[1748357352974,0.20140761,109500.0,109490.0,4.55845943]
[1748357353131,0.20140761,109500.0,109490.0,1.75947248]
[1748357353333,0.20140761,109500.0,109490.0,1.78062148]
[1748357353743,0.20140761,109500.0,109490.0,1.53686148]
[1748357353948,0.20140761,109500.0,109490.0,2.60953675]
[1748357354162,0.20140761,109500.0,109490.0,2.79585308]
[1748357354376,0.20140761,109500.0,109490.0,2.59492175]
[1748357354806,0.20140761,109500.0,109490.0,2.59192175]
[1748357355021,0.20140761,109500.0,109490.0,2.55737175]
[1748357355256,0.20140761,109500.0,109490.0,2.16450043]
[1748357355479,0.20140761,109500.0,109490.0,0.31286248]
[1748357355480,0.37651251,109500.0,109490.0,0.31286248]
[1748357355692,0.46756646,109500.0,109490.0,0.003]
[1748357355926,0.39437006,109500.0,109490.0,0.003]
[1748357356348,0.35576156,109500.0,109490.0,0.003]
[1748357357459,0.19179816,109490.0,109480.0,0.10444]
[1748357357673,0.18266508,109490.0,109480.0,0.10444]
[1748357357893,0.19179816,109490.0,109480.0,0.69837732]
[1748357358104,0.19179816,109490.0,109480.0,0.10444]
[1748357358330,0.19179816,109490.0,109480.0,0.17875168]
[1748357358545,0.19179816,109490.0,109480.0,0.241301]
[1748357358765,0.19279816,109490.0,109480.0,0.10444]
[1748357359436,0.19279816,109490.0,109480.0,0.241301]
[1748357360284,0.19279816,109490.0,109480.0,0.10444]
[1748357360538,0.19279816,109490.0,109480.0,0.001]
[1748357360773,0.19279816,109490.0,109480.0,0.10444]
[1748357360993,0.19279816,109490.0,109480.0,0.542542]
[1748357361205,0.19279816,109490.0,109480.0,0.40094]
[1748357362289,0.19279816,109490.0,109480.0,0.542542]
[1748357363377,0.19279816,109490.0,109480.0,0.40094]
[1748357363613,0.19279816,109490.0,109480.0,0.542542]
[1748357364348,0.19279816,109490.0,109480.0,0.39994]
[1748357364584,0.19279816,109490.0,109480.0,0.542542]
[1748357364807,0.18679816,109490.0,109480.0,0.542542]
[1748357365302,0.18679816,109490.0,109480.0,0.40094]
[1748357365577,0.18679816,109490.0,109480.0,0.2975]
[1748357365739,0.18679816,109490.0,109480.0,0.39946]
[1748357366173,0.18679816,109490.0,109480.0,0.2975]
[1748357366391,0.18679816,109490.0,109480.0,0.39946]
[1748357367052,0.18679816,109490.0,109480.0,0.645662]
[1748357367263,0.18679816,109490.0,109480.0,0.541062]
[1748357367723,0.18679816,109490.0,109480.0,0.39946]
[1748357369914,0.18679816,109490.0,109480.0,0.541597]
[1748357370587,0.18679816,109490.0,109480.0,0.39946]
[1748357370802,0.18679816,109490.0,109480.0,0.2975]
[1748357371016,0.18679816,109490.0,109480.0,0.18973256]
[1748357371466,0.18679816,109490.0,109480.0,0.08777256]
[1748357371684,0.18679816,109490.0,109480.0,0.18973256]
[1748357371905,0.18079816,109490.0,109480.0,0.18973256]
[1748357372114,0.18309215,109490.0,109480.0,0.18973256]
[1748357373210,0.22294566,109490.0,109480.0,0.08777256]
[1748357373426,0.28515167,109490.0,109480.0,0.18973256]
[1748357373869,0.24529816,109490.0,109480.0,0.18973256]
[1748357374308,0.69089296,109490.0,109480.0,0.08777256]
[1748357374758,0.67635211,109490.0,109480.0,0.08777256]
[1748357375227,0.52079816,109490.0,109480.0,0.08777256]
[1748357375671,0.18079816,109490.0,109480.0,0.52288088]
[1748357376330,0.21958626,109490.0,109480.0,0.18973256]
[1748357376547,0.21729227,109490.0,109480.0,0.18973256]
[1748357378967,0.17479816,109490.0,109480.0,0.18973256]
[1748357379177,0.17709215,109490.0,109480.0,0.18973256]
[1748357379402,0.17479816,109490.0,109480.0,0.25233256]
[1748357380987,0.18393116,109490.0,109480.0,2.19953118]
[1748357381428,0.17479816,109490.0,109480.0,2.59953118]
[1748357381652,0.17479816,109490.0,109480.0,2.59953135]
[1748357382755,0.17479816,109490.0,109480.0,2.60866527]
[1748357383613,0.17479816,109490.0,109480.0,2.61779894]
[1748357383846,0.01926591,109490.0,109480.0,2.62693252]
[1748357384064,0.01926541,109490.0,109480.0,6.24719252]
[1748357384287,0.02839817,109490.0,109480.0,6.24719252]
[1748357384507,0.02839817,109490.0,109480.0,5.13072252]
[1748357384508,0.03753125,109490.0,109480.0,5.13072252]
[1748357384989,0.1826896,109520.0,109510.0,0.0627]
[1748357385217,0.1826896,109520.0,109510.0,0.238531]
[1748357385437,0.1826896,109520.0,109500.0,0.74230832]
[1748357385438,0.19176313,109510.0,109500.0,0.74230832]
[1748357385666,0.19178065,109500.0,109490.0,1.14500832]
[1748357385884,0.19178065,109500.0,109490.0,1.87084127]
[1748357386105,0.20091281,109500.0,109490.0,2.47177277]
[1748357386356,0.19179816,109490.0,109480.0,0.86308088]
[1748357386605,0.19179816,109490.0,109480.0,0.53145751]
[1748357386822,0.18263172,109510.0,109490.0,0.26523117]
[1748357387034,0.20091282,109500.0,109490.0,3.39761752]
[1748357387302,0.20091282,109500.0,109490.0,1.05460627]
[1748357387303,0.19178082,109500.0,109490.0,1.05460627]
[1748357387512,0.19178082,109500.0,109490.0,1.4202473]
[1748357387931,0.19178082,109500.0,109490.0,1.3407403]
[1748357388143,0.18263172,109510.0,109490.0,1.58400438]
[1748357388376,0.002,109530.0,109520.0,0.5317452]
[1748357388606,0.01112925,109530.0,109520.0,6.03791515]
[1748357388827,0.002,109530.0,109520.0,6.03791515]
[1748357389047,0.00214827,109530.0,109520.0,6.03791515]
[1748357389256,0.01127752,109530.0,109520.0,6.03791515]
[1748357389475,0.00514827,109530.0,109520.0,6.97105115]
[1748357389700,0.00214827,109530.0,109520.0,6.97105115]
[1748357389950,0.01127752,109530.0,109520.0,7.385592]
[1748357390178,0.02040702,109530.0,109520.0,6.489545]
[1748357390419,0.20300589,109530.0,109520.0,3.42495374]
[1748357390640,0.20300589,109530.0,109520.0,1.69045774]
[1748357390859,0.20300589,109530.0,109520.0,1.98143527]
[1748357391090,0.20300589,109530.0,109520.0,2.01623527]
[1748357391535,0.20300589,109530.0,109520.0,2.04361527]
[1748357392181,0.20300589,109530.0,109520.0,0.694556]
[1748357392400,0.26920589,109530.0,109520.0,0.39612]
[1748357392612,0.23600589,109530.0,109520.0,0.49804]
[1748357393040,0.26820589,109530.0,109520.0,0.10392]
[1748357393268,0.31328499,109530.0,109520.0,0.002]
[1748357393487,0.26820589,109530.0,109520.0,0.002]
[1748357393720,0.43245624,109530.0,109520.0,0.002]
[1748357393927,0.74053624,109530.0,109520.0,0.002]
[1748357394175,0.72227699,109530.0,109510.0,0.10192]
[1748357394381,0.19176313,109510.0,109500.0,0.39404]
[1748357394595,0.19176313,109510.0,109500.0,0.49696]
[1748357396189,0.59846313,109510.0,109500.0,0.001]
[1748357396435,1.01109793,109510.0,109500.0,0.001]
[1748357397073,1.01309793,109510.0,109500.0,0.001]
[1748357397287,1.10415188,109510.0,109500.0,0.001]
[1748357397525,1.10215188,109510.0,109500.0,0.001]
[1748357397964,0.70705793,109510.0,109500.0,0.001]
[1748357398184,0.69251708,109510.0,109500.0,0.001]
[1748357398400,0.68951708,109510.0,109500.0,0.001]
[1748357398618,0.69251708,109510.0,109500.0,0.001]
[1748357400139,0.90854313,109510.0,109500.0,0.001]
[1748357400355,0.99959708,109510.0,109500.0,0.001]
[1748357401199,0.60146313,109510.0,109500.0,0.001]
[1748357401431,0.53776313,109510.0,109500.0,0.001]
[1748357401655,0.53776313,109510.0,109500.0,0.43610832]
[1748357401656,0.19776313,109510.0,109500.0,0.43610832]
[1748357403016,0.19176313,109510.0,109500.0,0.43610832]
[1748357403236,0.19276313,109510.0,109500.0,0.43610832]
[1748357403443,0.19476313,109510.0,109500.0,0.43610832]
[1748357403872,0.19476313,109510.0,109500.0,1.42267627]
[1748357404112,0.21302596,109510.0,109500.0,3.975779]
[1748357404535,0.21302596,109510.0,109500.0,3.96664667]
[1748357404744,0.22215754,109510.0,109500.0,3.99404307]
[1748357405174,0.02839365,109510.0,109500.0,4.3617649]
[1748357405387,0.02839357,109510.0,109500.0,4.5479979]
[1748357405636,0.02839357,109510.0,109500.0,5.95319622]
[1748357405637,0.01013083,109510.0,109500.0,5.95319622]
[1748357405833,0.00913083,109510.0,109500.0,5.5180879]
[1748357406057,0.00913083,109510.0,109500.0,5.08297958]
[1748357406288,0.00913083,109510.0,109500.0,3.62795621]
[1748357406548,0.00913083,109510.0,109500.0,6.26389721]
[1748357406781,0.01940684,109530.0,109520.0,0.27180627]
[1748357407017,0.01940684,109530.0,109520.0,6.49543726]
[1748357407018,0.00114827,109530.0,109520.0,6.49543726]
[1748357407254,0.01027743,109530.0,109520.0,5.49928126]
[1748357407503,0.01027743,109530.0,109520.0,6.49543726]
[1748357407715,0.01027743,109530.0,109520.0,4.61951226]
[1748357407937,0.00114827,109530.0,109520.0,4.97405311]
[1748357408159,0.00114827,109530.0,109520.0,5.37505311]
[1748357408599,0.00114827,109530.0,109520.0,7.25097811]
[1748357409519,0.02938349,109550.0,109540.0,0.27296795]
[1748357409731,0.03851157,109550.0,109540.0,4.30380518]
[1748357409953,0.23020535,109550.0,109540.0,3.85956636]
[1748357410176,0.03851207,109550.0,109540.0,3.10640484]
[1748357410430,0.2210771,109550.0,109540.0,4.99074484]
[1748357410647,0.2220771,109550.0,109540.0,4.91773384]
[1748357410855,0.23120535,109550.0,109540.0,4.98115934]
[1748357411075,0.22207752,109550.0,109540.0,3.75912776]
[1748357411289,0.20382144,109550.0,109540.0,2.64671827]
[1748357411563,0.20582144,109550.0,109540.0,2.73466105]
[1748357411734,0.18756503,109550.0,109540.0,2.73466105]
[1748357411958,0.18756503,109550.0,109540.0,2.55207935]
[1748357412168,0.18756503,109550.0,109540.0,2.99825227]
[1748357412386,0.18756503,109550.0,109540.0,1.94810627]
[1748357413287,0.18756503,109550.0,109540.0,2.08663727]
[1748357413509,0.18756503,109550.0,109540.0,1.56989795]
[1748357413736,0.18756503,109550.0,109540.0,0.93277395]
[1748357413946,0.18756503,109550.0,109540.0,0.43105395]
[1748357414194,0.18756503,109550.0,109540.0,0.44172]
[1748357415747,0.18756503,109550.0,109540.0,0.87682832]
[1748357417710,0.18756503,109550.0,109540.0,0.96788227]
[1748357419517,0.18756503,109550.0,109530.0,0.4]
[1748357419738,0.19172812,109530.0,109520.0,0.1162114]
[1748357419974,0.25372812,109530.0,109520.0,0.1162114]
[1748357420195,0.25372812,109530.0,109520.0,0.4562114]
[1748357420403,0.25372812,109530.0,109520.0,0.44172]
[1748357420630,0.25372812,109530.0,109520.0,0.10172]
[1748357421304,0.25372812,109530.0,109520.0,0.44172]
[1748357421511,0.25372812,109530.0,109520.0,0.44272]
[1748357421721,0.24459837,109530.0,109520.0,0.44172]
[1748357421930,0.24459837,109530.0,109520.0,0.51603168]
[1748357422142,0.25372812,109530.0,109520.0,0.44172]
[1748357422362,0.25372812,109530.0,109520.0,0.44272]
[1748357422831,0.22182812,109530.0,109520.0,0.44272]
[1748357423081,0.22182812,109530.0,109520.0,0.341]
[1748357423307,0.22182812,109530.0,109520.0,0.44272]
[1748357425577,0.25232812,109530.0,109520.0,0.44272]
[1748357426597,0.22182812,109530.0,109520.0,0.44272]
[1748357428842,0.21582812,109530.0,109520.0,0.44272]
[1748357429734,0.18572812,109530.0,109520.0,0.4426]
[1748357430166,0.21892812,109530.0,109520.0,0.4426]
[1748357431261,0.24992812,109530.0,109520.0,0.001]
[1748357431485,0.7054939,109530.0,109520.0,0.001]
[1748357432396,0.26629429,109510.0,109500.0,0.4436]
[1748357432814,0.26629429,109510.0,109500.0,0.342]
[1748357433035,0.35734824,109510.0,109500.0,0.342]
[1748357433327,0.35734824,109510.0,109500.0,0.00214827]
[1748357433328,0.67860909,109510.0,109500.0,0.00214827]
[1748357433493,0.73260692,109510.0,109500.0,0.00214827]
[1748357433709,0.73260692,109510.0,109500.0,0.00314827]
[1748357435010,0.73260692,109510.0,109500.0,0.00214827]
[1748357435446,0.73560692,109510.0,109500.0,0.00214827]
[1748357435896,0.72647551,109510.0,109500.0,0.00214827]
[1748357436117,0.73960692,109510.0,109500.0,0.00214827]
[1748357437003,0.74960692,109510.0,109500.0,0.00214827]
[1748357438570,0.27807184,109490.0,109480.0,0.002]
[1748357438811,0.72191931,109490.0,109480.0,0.002]
[1748357439015,0.72191931,109490.0,109480.0,0.00249454]
[1748357440340,0.73191931,109490.0,109480.0,0.00249454]
[1748357441261,1.12191931,109490.0,109480.0,0.00249454]
[1748357441495,1.50902763,109490.0,109480.0,0.00249454]
[1748357441930,1.07891931,109490.0,109480.0,0.00349454]
[1748357442392,0.21550855,109470.0,109460.0,0.002]
[1748357442606,0.72000302,109470.0,109460.0,0.002]
[1748357443043,1.21511134,109470.0,109460.0,0.00214815]
[1748357443268,0.3674625,109470.0,109460.0,0.00214815]
[1748357443490,0.2009677,109470.0,109460.0,0.03334815]
[1748357443706,0.2009677,109470.0,109460.0,1.02645347]
[1748357443966,0.2009677,109470.0,109460.0,0.37334815]
[1748357444202,0.2009677,109470.0,109460.0,0.34214815]
[1748357445060,0.2049677,109470.0,109460.0,0.34214815]
[1748357445277,0.2099677,109470.0,109460.0,0.34314815]
[1748357445495,0.2009677,109470.0,109460.0,0.34214815]
[1748357445947,0.2039677,109470.0,109460.0,0.40354815]
[1748357446811,0.2039677,109470.0,109460.0,0.37314815]
[1748357448338,0.24263413,109470.0,109460.0,0.34214815]
[1748357448835,0.33368808,109470.0,109460.0,0.34214815]
[1748357449249,0.33368808,109470.0,109450.0,0.10164]
[1748357449250,0.19185073,109460.0,109450.0,0.10164]
[1748357449464,0.19186826,109450.0,109440.0,0.13802122]
[1748357449665,0.19186826,109450.0,109440.0,1.53152454]
[1748357449882,0.19186826,109450.0,109440.0,1.42692454]
[1748357450097,0.18273184,109450.0,109440.0,1.42692454]
[1748357450307,0.00913559,109460.0,109450.0,1.48183751]
[1748357450520,0.21012174,109460.0,109450.0,1.20233595]
[1748357450734,0.21012174,109460.0,109450.0,1.34012279]
[1748357450735,0.2009864,109460.0,109450.0,1.34012279]
[1748357450942,0.19185081,109460.0,109450.0,1.15739095]
[1748357451153,0.19185081,109460.0,109450.0,0.73039495]
[1748357451372,0.19185081,109460.0,109450.0,1.08097695]
[1748357452456,0.19285081,109460.0,109450.0,1.09970295]
[1748357452883,0.19285081,109460.0,109450.0,1.16016895]
[1748357453105,0.19285081,109460.0,109450.0,1.54986227]
[1748357453963,0.19285081,109460.0,109450.0,0.86116]
[1748357454180,0.23040574,109460.0,109450.0,0.44264]
[1748357454416,0.23040574,109460.0,109450.0,0.10264]
[1748357457287,0.22440574,109460.0,109450.0,0.10264]
[1748357457928,0.18685081,109460.0,109450.0,0.10264]
[1748357462414,0.18685081,109460.0,109450.0,0.10244]
[1748357463482,0.18685081,109460.0,109450.0,0.44244]
[1748357463700,0.001,109460.0,109450.0,1.59376693]
[1748357463975,0.14305246,109470.0,109460.0,0.18271514]
[1748357464197,0.14305246,109470.0,109460.0,3.18172496]
[1748357464425,0.18269664,109480.0,109470.0,0.0644]
[1748357464674,0.18566508,109490.0,109480.0,0.4044]
[1748357464898,0.18566508,109490.0,109480.0,1.66866732]
[1748357465329,0.18566508,109490.0,109480.0,2.06866732]
[1748357465556,0.18581331,109490.0,109480.0,2.73668303]
[1748357465781,0.20407872,109490.0,109480.0,5.03163378]
[1748357465982,0.2132118,109490.0,109480.0,4.63695302]
[1748357466192,0.20607922,109490.0,109480.0,4.64608685]
[1748357466406,0.20607922,109490.0,109480.0,4.44513726]
[1748357466610,0.19694639,109490.0,109480.0,1.40953526]
[1748357466815,0.19694639,109490.0,109480.0,2.00323626]
[1748357467046,0.19894639,109490.0,109480.0,2.00323626]
[1748357467248,0.19894639,109490.0,109480.0,1.89863626]
[1748357467455,0.19894639,109490.0,109480.0,1.268421]
[1748357467666,0.19694639,109490.0,109480.0,0.83572]
[1748357467916,0.23390737,109490.0,109480.0,0.83572]
[1748357468133,0.23390737,109490.0,109480.0,0.73428]
[1748357468356,0.19594639,109490.0,109480.0,0.83568]
[1748357468557,0.26134639,109490.0,109480.0,0.73428]
[1748357468757,0.26134639,109490.0,109480.0,0.83568]
[1748357468990,0.26134639,109490.0,109480.0,0.84906031]
[1748357468991,0.33639137,109490.0,109480.0,0.84906031]
[1748357469225,0.42744532,109490.0,109480.0,0.39428]
[1748357470927,0.44198617,109490.0,109480.0,0.39428]
[1748357471811,0.44298617,109490.0,109480.0,0.39428]
[1748357472221,0.44098617,109490.0,109480.0,0.39428]
[1748357472453,0.44398617,109490.0,109480.0,0.39428]
[1748357472929,0.25321568,109480.0,109470.0,0.4414]
[1748357473147,0.65062963,109480.0,109470.0,0.34]
[1748357473370,0.70012581,109480.0,109470.0,0.34]
[1748357473590,0.70012581,109480.0,109460.0,0.4414]
[1748357473591,0.1918332,109470.0,109460.0,0.4414]
[1748357475827,0.2243332,109470.0,109460.0,0.34]
[1748357476038,0.2243332,109470.0,109460.0,0.4414]
[1748357476250,0.20100443,109450.0,109440.0,0.37122122]
[1748357476450,0.20100443,109450.0,109440.0,0.50002322]
[1748357476868,0.20100443,109450.0,109440.0,0.81262122]
[1748357477281,0.29205838,109450.0,109440.0,0.47262122]
[1748357477483,0.43117283,109450.0,109440.0,0.17912122]
[1748357477690,0.43122221,109450.0,109440.0,0.17912122]
[1748357478152,0.40032221,109450.0,109440.0,0.17612122]
[1748357478575,0.43272221,109450.0,109440.0,0.17612122]
[1748357478983,0.43272221,109450.0,109440.0,0.17912122]
[1748357479179,0.43272221,109450.0,109440.0,0.17612122]
[1748357479423,0.44726306,109450.0,109440.0,0.07472122]
[1748357479633,0.44926306,109450.0,109440.0,0.07472122]
[1748357480771,0.45026306,109450.0,109440.0,0.07472122]
[1748357481914,0.45026306,109450.0,109440.0,0.05331774]
[1748357482154,0.44926306,109450.0,109440.0,0.05331774]
[1748357482367,0.44726306,109450.0,109440.0,0.05331774]
[1748357482577,0.45026306,109450.0,109440.0,0.05331774]
[1748357483251,0.46026306,109450.0,109440.0,0.05331774]
[1748357483673,0.46326306,109450.0,109440.0,0.05331774]
[1748357484090,0.46026306,109450.0,109440.0,0.05331774]
[1748357484537,0.46526306,109450.0,109440.0,0.05331774]
[1748357484747,0.51226306,109450.0,109440.0,0.05331774]
[1748357484965,0.84726306,109450.0,109440.0,0.05331774]
[1748357485186,1.27837138,109450.0,109440.0,0.05431774]
[1748357485409,1.34093948,109450.0,109440.0,0.05431774]
[1748357485632,1.34093948,109450.0,109440.0,0.05531774]
[1748357485633,1.28337138,109450.0,109440.0,0.05531774]
[1748357485915,1.23337138,109450.0,109440.0,0.05531774]
[1748357486128,0.26517791,109410.0,109400.0,0.10344]
[1748357486349,0.70730934,109410.0,109400.0,0.002]
[1748357486809,0.72185019,109410.0,109400.0,0.002]
[1748357487489,0.72285019,109410.0,109400.0,0.002]
[1748357487940,0.72285019,109410.0,109400.0,0.00214845]
[1748357488407,0.72285019,109410.0,109400.0,0.00314845]
[1748357489577,0.72285019,109410.0,109400.0,0.00214845]
[1748357490295,0.72185019,109410.0,109400.0,0.00214845]
[1748357490509,0.72085019,109410.0,109400.0,0.00214845]
[1748357490739,0.72385019,109410.0,109400.0,0.00214845]
[1748357491191,0.72085019,109410.0,109400.0,0.00214845]
[1748357491627,0.72385019,109410.0,109400.0,0.00214845]
[1748357491856,0.70930934,109410.0,109400.0,0.00214845]
[1748357492078,0.70930934,109410.0,109400.0,0.00314845]
[1748357492079,0.71330934,109410.0,109400.0,0.00314845]
[1748357492296,0.72785019,109410.0,109400.0,0.00314845]
[1748357496009,0.42157019,109410.0,109400.0,0.00314845]
[1748357496225,0.72777019,109410.0,109400.0,0.00314845]
[1748357496858,0.73777019,109410.0,109400.0,0.00314845]
[1748357497328,0.37677271,109410.0,109400.0,0.00314845]
[1748357497559,0.68297271,109410.0,109400.0,0.00314845]
[1748357497771,0.37677271,109410.0,109400.0,0.00314845]
[1748357497983,0.68297271,109410.0,109400.0,0.00314845]
[1748357500226,1.12808103,109410.0,109400.0,0.00314845]
[1748357500468,1.60913498,109410.0,109400.0,0.00314845]
[1748357500929,0.27755552,109390.0,109380.0,0.002]
[1748357501194,0.67476947,109390.0,109380.0,0.002]
[1748357501664,1.49987779,109390.0,109380.0,0.002]
[1748357501904,0.2781923,109370.0,109360.0,0.002]
[1748357502145,0.67540625,109370.0,109360.0,0.002]
[1748357502604,0.67554155,109370.0,109360.0,0.002]
[1748357504398,0.67954155,109370.0,109360.0,0.003]
[1748357504626,0.76799006,109370.0,109360.0,0.003]
[1748357504842,0.77199006,109370.0,109360.0,0.004]
[1748357505513,0.77195006,109370.0,109360.0,0.004]
[1748357506381,0.34648155,109370.0,109360.0,0.004]
[1748357506592,0.62100155,109370.0,109360.0,0.004]
[1748357507011,0.69580155,109370.0,109360.0,0.004]
[1748357507232,0.20118824,109350.0,109340.0,0.002]
[1748357507450,0.29224219,109350.0,109340.0,0.01049637]
[1748357507685,0.29224219,109350.0,109340.0,0.01049642]
[1748357507900,0.33975613,109350.0,109340.0,0.0104919]
[1748357508329,0.33975613,109350.0,109340.0,0.002]
[1748357508577,0.71355613,109350.0,109340.0,0.01149193]
[1748357508999,0.68175613,109350.0,109340.0,0.01149193]
[1748357509418,0.68175613,109350.0,109340.0,0.01149233]
[1748357509860,0.68175613,109350.0,109340.0,0.01149197]
[1748357510279,0.68175613,109350.0,109340.0,0.003]
[1748357510920,0.68175613,109350.0,109340.0,0.01149701]
[1748357511165,0.29424219,109350.0,109340.0,0.07609701]
[1748357511397,0.29424219,109350.0,109340.0,0.10132926]
[1748357511619,0.29424219,109350.0,109340.0,0.07609553]
[1748357512133,0.29424219,109350.0,109340.0,0.07609768]
[1748357513088,0.29424219,109350.0,109340.0,0.07610168]
[1748357513805,0.29324219,109350.0,109340.0,0.07610453]
[1748357514014,0.34095613,109350.0,109340.0,0.07610455]
[1748357514403,0.29324219,109350.0,109340.0,0.07610455]
[1748357514801,0.29224219,109350.0,109340.0,0.07510455]
[1748357515098,0.29224219,109350.0,109340.0,0.07611018]
[1748357515469,0.29224219,109350.0,109340.0,0.0676]
[1748357515678,0.29224219,109350.0,109340.0,0.07611017]
[1748357516050,0.29224219,109350.0,109340.0,0.0761114]
[1748357516282,0.33975613,109350.0,109340.0,0.0761114]
[1748357516509,0.33975613,109350.0,109340.0,0.0676]
[1748357516717,0.33975613,109350.0,109340.0,0.0761114]
[1748357516888,0.33975613,109350.0,109340.0,0.0676]
[1748357517298,0.33975613,109350.0,109340.0,0.0761114]
[1748357517500,0.19206128,109340.0,109330.0,0.81567579]
[1748357517704,0.19206128,109340.0,109330.0,0.543861]
[1748357518523,0.19306128,109340.0,109330.0,0.545861]
[1748357518773,0.19306128,109340.0,109330.0,0.44324]
[1748357519419,0.19306128,109340.0,109330.0,0.342]
[1748357519636,0.19306128,109340.0,109330.0,0.44328]
[1748357519806,0.19306128,109340.0,109330.0,0.44428]
[1748357520209,0.2397627,109340.0,109330.0,0.003]
[1748357520492,0.2397627,109340.0,109330.0,0.10396]
[1748357520701,0.33081665,109340.0,109330.0,0.10396]
[1748357521558,0.33081665,109340.0,109330.0,0.003]
[1748357521777,0.66703665,109340.0,109330.0,0.003]
[1748357521993,0.69883665,109340.0,109330.0,0.003]
[1748357523597,0.69883665,109340.0,109330.0,0.002]
[1748357523868,0.66703665,109340.0,109330.0,0.002]
[1748357524098,0.28711523,109340.0,109330.0,0.002]
[1748357524327,0.19606128,109340.0,109330.0,0.0343]
[1748357524977,0.19207885,109330.0,109320.0,0.84030832]
[1748357525966,0.19207885,109330.0,109320.0,0.342]
[1748357526191,0.2831328,109330.0,109320.0,0.342]
[1748357526416,0.2841328,109330.0,109320.0,0.343]
[1748357526867,0.2841328,109330.0,109320.0,0.34349512]
[1748357527110,0.2841328,109330.0,109300.0,0.18518706]
[1748357527111,0.20126186,109310.0,109300.0,0.18518706]
[1748357527338,0.19214915,109290.0,109280.0,0.08104081]
[1748357527563,0.19214915,109290.0,109280.0,0.15030081]
[1748357527802,0.19214915,109290.0,109280.0,0.44296]
[1748357528041,0.19214915,109290.0,109280.0,0.10296]
[1748357528282,0.26025033,109290.0,109280.0,0.01157266]
[1748357528493,0.25725033,109290.0,109280.0,0.01157266]
[1748357528728,0.25725033,109290.0,109280.0,0.00214837]
[1748357528982,0.34830428,109290.0,109280.0,0.00214837]
[1748357529212,0.2812031,109290.0,109280.0,0.00514837]
[1748357529862,0.2802031,109290.0,109280.0,0.00214837]
[1748357530077,0.2802031,109290.0,109280.0,0.00414837]
[1748357530303,0.18914915,109290.0,109280.0,0.82039427]
[1748357530520,0.18914915,109290.0,109280.0,0.81839396]
[1748357530732,0.18914915,109290.0,109280.0,0.8483933]
[1748357530956,0.19014915,109290.0,109280.0,0.83985669]
[1748357531180,0.19014915,109290.0,109280.0,0.84838702]
[1748357531687,0.18914915,109290.0,109280.0,0.84838702]
[1748357531909,0.18914915,109290.0,109280.0,0.85803293]
[1748357532165,0.19014915,109290.0,109280.0,0.85903293]
[1748357532403,0.18914915,109290.0,109280.0,0.45543199]
[1748357532660,0.19014915,109290.0,109280.0,0.45643223]
[1748357532905,0.19014915,109290.0,109280.0,0.45642864]
[1748357533120,0.19014915,109290.0,109280.0,0.45742868]
[1748357533347,0.19014915,109290.0,109280.0,0.4574286]
[1748357533589,0.19014915,109290.0,109280.0,0.9663476]
[1748357533825,0.19014915,109290.0,109280.0,0.9178386]
[1748357534057,0.19014915,109290.0,109280.0,0.91783723]
[1748357534534,0.19014915,109290.0,109280.0,0.91783707]
[1748357534771,0.19014915,109290.0,109280.0,0.48272875]
[1748357535003,0.19014915,109290.0,109280.0,0.90931267]
[1748357535232,0.19014915,109290.0,109280.0,1.10085316]
[1748357535476,0.19014915,109290.0,109280.0,0.89734206]
[1748357535700,0.19014915,109290.0,109280.0,0.8973395]
[1748357535957,0.19014915,109290.0,109280.0,1.08098457]
[1748357536201,0.01014954,109290.0,109280.0,0.96089135]
[1748357536437,0.01114779,109310.0,109300.0,0.21042898]
[1748357536725,0.02944319,109310.0,109300.0,2.72415476]
[1748357536998,0.03859131,109310.0,109300.0,3.0326113]
[1748357537265,0.22155718,109310.0,109300.0,2.87101276]
[1748357537515,0.20326194,109310.0,109300.0,2.86186397]
[1748357537735,0.1849324,109330.0,109320.0,0.54124379]
[1748357537950,0.1849324,109330.0,109320.0,1.25441114]
[1748357538179,0.1849324,109330.0,109320.0,1.40950932]
[1748357538395,0.1849324,109330.0,109320.0,1.36506032]
[1748357539114,0.20322521,109330.0,109320.0,1.36506032]
[1748357539505,0.20322521,109330.0,109320.0,0.34]
[1748357539507,0.20522521,109330.0,109320.0,0.343]
[1748357539954,0.20422521,109330.0,109320.0,0.343]
[1748357540331,0.26492521,109330.0,109320.0,0.342]
[1748357540799,0.3402813,109330.0,109320.0,0.34]
[1748357541010,0.3402813,109330.0,109320.0,0.06]
[1748357541908,0.3412813,109330.0,109320.0,0.061]
[1748357542133,0.43133525,109330.0,109320.0,0.06]
[1748357542362,0.43133525,109330.0,109320.0,0.061]
[1748357542363,0.73801525,109330.0,109320.0,0.061]
[1748357542596,0.73801525,109330.0,109320.0,0.001]
[1748357543030,0.7525561,109330.0,109320.0,0.001]
[1748357543248,0.7525561,109330.0,109280.0,0.44672545]
[1748357543249,0.20129869,109290.0,109280.0,0.44672545]
[1748357543474,0.20129869,109290.0,109280.0,1.04201545]
[1748357544252,0.20129869,109290.0,109280.0,1.04206491]
[1748357544919,0.20229869,109290.0,109280.0,1.04806491]
[1748357545394,0.20229869,109290.0,109280.0,0.61295659]
[1748357545658,0.20229869,109290.0,109280.0,0.27625432]
[1748357545905,0.20229869,109290.0,109280.0,0.12503906]
[1748357546144,0.3042283,109290.0,109280.0,0.12503933]
[1748357546373,0.3042283,109290.0,109280.0,0.11651432]
[1748357546651,0.26569869,109290.0,109280.0,0.11557601]
[1748357547178,0.35675264,109290.0,109280.0,0.01457601]
[1748357547413,0.53843869,109290.0,109280.0,0.01457451]
[1748357547646,0.53843869,109290.0,109280.0,0.01157398]
[1748357547868,0.23279869,109290.0,109280.0,0.01157398]
[1748357548099,0.20129869,109290.0,109280.0,0.00857398]
[1748357548370,0.20229869,109290.0,109280.0,0.00957398]
[1748357548832,0.2745123,109290.0,109280.0,0.00957398]
[1748357549065,0.2745123,109290.0,109280.0,0.00957357]
[1748357549526,0.20229869,109290.0,109280.0,0.00957357]
[1748357549746,0.20229869,109290.0,109280.0,0.00957512]
[1748357550191,0.20229869,109290.0,109280.0,0.00104946]
[1748357550444,0.20229869,109290.0,109280.0,0.34957342]
[1748357550656,0.20229869,109290.0,109280.0,0.34957313]
[1748357551139,0.20229869,109290.0,109280.0,0.77615778]
[1748357554543,0.20229869,109290.0,109280.0,0.34104946]
[1748357554800,0.20229869,109290.0,109280.0,0.77615778]